fUSD/lending_fUSD_20240822
["ID","MTS","AMOUNT","RATE_DAILY","PERIOD"]
[335601554,1724362256160,400.0,9.9e-05,3]
[335601555,1724362258256,900.0,0.0001,3]
[335601556,1724362417238,289.55,8.219e-05,2]
[335601557,1724362447137,9386.71,9.939e-05,2]
[335601558,1724362491995,459283.36781091,0.00025,60]
[335601559,1724362526303,285.08,9.939e-05,2]
[335601560,1724362563233,200.0,9.939e-05,2]
[335601561,1724362629968,7907.65,9.982e-05,2]
[335601562,1724362734259,1050.0,0.0001,2]
[335601563,1724362802734,150.0,0.0001,2]
[335601564,1724362802912,150.0,0.0001,2]
[335601565,1724362803127,151.46325954,0.0001,2]
[335601566,1724362892776,250.0,9.932e-05,2]
[335601567,1724363034329,167.65,9.961e-05,2]
[335601568,1724363047394,840.0,9.949e-05,2]
[335601569,1724363048361,155.0,0.00010009,2]
[335601570,1724363062263,275.07,8.219e-05,2]
[335601571,1724363085863,155.0,9.962e-05,2]
[335601572,1724363149868,155.0,9.962e-05,2]
[335601573,1724363227662,400.0,9.9e-05,3]
[335601574,1724363229763,800.0,0.0001,3]
[335601575,1724363297982,200.0,9.95e-05,2]
[335601582,1724363431696,-155.0,0.00010097,2]
[335601583,1724363431706,-9275.57361174,0.00010097,2]
[335601584,1724363431716,-1200.0,0.000101,3]
[335601585,1724363431725,-1700.0,0.000102,3]
[335601586,1724363431734,-2100.0,0.000103,3]
[335601587,1724363431744,-400.0,0.000104,3]
[335601588,1724363431753,-687.65858554,0.00010471,2]
[335601589,1724363431762,-440.08291615,0.00010471,2]
[335601590,1724363431771,-275.07,0.00010475,2]
[335601591,1724363431780,-150.0,0.00010499,2]
[335601592,1724363431789,-549.75,0.000105,2]
[335601593,1724363431799,-356.9,0.000105,2]
[335601594,1724363431808,-150.0,0.000105,2]
[335601595,1724363431818,-150.0,0.000105,2]
[335601596,1724363431827,-53.93867604,0.000105,2]
[335601610,1724363437740,-302.96132396,0.000105,2]
[335601611,1724363437749,-356.9,0.000105,2]
[335601612,1724363437758,-356.9,0.000105,2]
[335601613,1724363437767,-150.0,0.000105,2]
[335601614,1724363437776,-626.39,0.000105,2]
[335601615,1724363437785,-150.0,0.000105,2]
[335601616,1724363437795,-713.66,0.000105,2]
[335601617,1724363437804,-150.33,0.000105,2]
[335601618,1724363437812,-356.9,0.000105,2]
[335601619,1724363437822,-356.9,0.000105,2]
[335601620,1724363437831,-150.0,0.000105,2]
[335601621,1724363437840,-356.9,0.000105,2]
[335601622,1724363437849,-150.0,0.000105,2]
[335601623,1724363437860,-150.0,0.000105,2]
[335601624,1724363437869,-356.9,0.000105,2]
[335601625,1724363437878,-400.0,0.000105,3]
[335601626,1724363437887,-531.53,0.000105,2]
[335601627,1724363437897,-3252.98670935,0.00010566,2]
[335601628,1724363437906,-400.0,0.000106,3]
[335601629,1724363437915,-162.596936,0.00010665,2]
[335601630,1724363437924,-400.0,0.000107,3]
[335601631,1724363437934,-857.0,0.000108,3]
[335601632,1724363437943,-158.5890408,0.00010852,5]
[335601633,1724363437952,-293.68354989,0.00010888,2]
[335601634,1724363437961,-375.36915227,0.00010888,2]
[335601635,1724363437970,-330.24732685,0.00010888,2]
[335601636,1724363437979,-1305.76898,0.0001089,2]
[335601637,1724363437988,-207.021857,0.0001089,2]
[335601638,1724363437998,-431.91578682,0.0001089,2]
[335601639,1724363438007,-229.66145693,0.0001089,2]
[335601640,1724363438015,-33534.62081667,0.000109,2]
[335601641,1724363438024,-822.89522035,0.000109,2]
[335601642,1724363438033,-641.45761969,0.000109,2]
[335601643,1724363438043,-1305.76898,0.0001095,2]
[335601644,1724363438052,-160.69,0.00010959,2]
[335601645,1724363438063,-344.86,0.00010959,2]
[335601646,1724363438072,-250.0,0.00010959,2]
[335601647,1724363438081,-200.0,0.00010973,2]
[335601648,1724363438091,-174.46989904,0.00010973,2]
[335601649,1724363438101,-200.0,0.00010973,2]
[335601650,1724363438111,-500.0,0.00010989,2]
[335601651,1724363438122,-500.0,0.00010989,2]
[335601652,1724363438134,-500.0,0.00010989,2]
[335601653,1724363438145,-500.0,0.00010989,2]
[335601654,1724363438155,-500.0,0.00010989,2]
[335601655,1724363438167,-500.0,0.00010989,2]
[335601656,1724363438177,-500.0,0.00010989,2]
[335601657,1724363438187,-500.0,0.00010989,2]
[335601658,1724363438198,-155.0,0.0001099,2]
[335601659,1724363438209,-150.75,0.0001099,2]
[335601660,1724363438220,-150.75,0.0001099,2]
[335601661,1724363438229,-150.75,0.0001099,2]
[335601662,1724363438238,-150.75,0.0001099,2]
[335601663,1724363438248,-150.75,0.0001099,2]
[335601664,1724363438257,-1197.69592068,0.00010997,2]
[335601665,1724363438267,-152.31108172,0.00010999,2]
[335601666,1724363438277,-500.0,0.00010999,2]
[335601667,1724363438286,-500.0,0.00010999,2]
[335601668,1724363438295,-500.0,0.00010999,2]
[335601669,1724363438304,-500.0,0.00010999,2]
[335601670,1724363438313,-500.0,0.00010999,2]
[335601671,1724363438323,-500.0,0.00010999,2]
[335601672,1724363438333,-500.0,0.00010999,2]
[335601673,1724363438345,-500.0,0.00010999,2]
[335601674,1724363438356,-500.0,0.00010999,2]
[335601675,1724363438366,-500.0,0.00010999,2]
[335601676,1724363438375,-500.0,0.00010999,2]
[335601677,1724363438384,-500.0,0.00010999,2]
[335601678,1724363438395,-361.2212286,0.00010999,2]
[335601679,1724363438404,-500.0,0.00010999,2]
[335601680,1724363438416,-500.0,0.00010999,2]
[335601681,1724363438428,-500.0,0.00010999,2]
[335601682,1724363438437,-500.0,0.00010999,2]
[335601683,1724363438446,-500.0,0.00010999,2]
[335601684,1724363438456,-500.0,0.00010999,2]
[335601685,1724363438466,-500.0,0.00010999,2]
[335601686,1724363438475,-500.0,0.00010999,2]
[335601687,1724363438485,-500.0,0.00010999,2]
[335601688,1724363438494,-576.56,0.00010999,2]
[335601689,1724363438503,-500.0,0.00010999,2]
[335601690,1724363438513,-500.0,0.00010999,2]
[335601691,1724363438525,-500.0,0.00010999,2]
[335601692,1724363438534,-500.0,0.00010999,2]
[335601693,1724363438543,-500.0,0.00010999,2]
[335601694,1724363438553,-500.0,0.00010999,2]
[335601695,1724363438562,-500.0,0.00010999,2]
[335601696,1724363438571,-500.0,0.00010999,2]
[335601697,1724363438580,-500.0,0.00010999,2]
[335601698,1724363438589,-500.0,0.00010999,2]
[335601699,1724363438599,-251.92,0.00010999,2]
[335601700,1724363438608,-542.41587299,0.00010999,2]
[335601701,1724363438618,-31989.94338344,0.00011,2]
[335601702,1724363438627,-705854.51440095,0.00011,2]
[335601703,1724363439676,-3024.152094,0.00011,2]
[335601751,1724363444415,-164.95731866,0.000109,2]
[335601752,1724363444427,-20073.77458622,0.00011,2]
[335601753,1724363445543,-2138.00000118,0.00011,2]
[335601754,1724363445555,-1135.31998,0.00011,2]
[335601755,1724363445721,-568.80754221,0.00011,2]
[335601756,1724363448256,500.0,9.9e-05,3]
[335601757,1724363450359,1100.0,0.0001,3]
[335601760,1724363566606,338.68,8.335e-05,2]
[335601761,1724363628432,601.416767,0.000121,30]
[335601762,1724363633299,1500.0,8.335e-05,2]
[335601764,1724363855553,9579.76973068,0.0001,2]
[335601767,1724364063125,321.74,8.219e-05,2]
[335601768,1724364078195,672.0,9.822e-05,2]
[335601769,1724364169957,500.0,0.00024657,120]
[335601770,1724364170263,500.0,0.00025342,120]
[335601771,1724364170537,500.0,0.00026027,120]
[335601772,1724364170698,1433.13,9.845e-05,2]
[335601773,1724364170810,500.0,0.00026712,120]
[335601774,1724364215888,264.6397361,0.00010009,2]
[335601775,1724364254386,150.0,0.000121,30]
[335601776,1724364313373,150.0,9.888e-05,2]
[335601777,1724364426580,500.0,9.9e-05,3]
[335601778,1724364428695,1000.0,0.0001,3]
[335601779,1724364458464,155.0,0.00010009,2]
[335601780,1724364528466,305.65,8.219e-05,2]
[335601781,1724364533570,462.4,9.806e-05,2]
[335601782,1724364544904,1050.0,0.0001,2]
[335601783,1724364549391,687.65858554,0.00010009,2]
[335601784,1724364589844,155.0,0.00010009,2]
[335601790,1724364616561,295.12,9.856e-05,2]
[335601791,1724364628535,177.92625904,0.00010009,2]
[335601797,1724364631660,-312.02099594,0.00010026,2]
[335601798,1724364631671,-329.60877737,0.00010026,2]
[335601799,1724364631743,-900.0,0.00010026,2]
[335601800,1724364631755,-422.62022669,0.00010026,2]
[335601801,1724364631764,-152.42977331,0.00010026,2]
[335601802,1724364631824,-684.75826689,0.00010026,2]
[335601806,1724364637723,-451.9337254,0.00010026,2]
[335601807,1724364637732,-1500.0,0.000101,3]
[335601808,1724364637745,-2000.0,0.000102,3]
[335601809,1724364637755,-174.79,0.00010253,2]
[335601810,1724364637763,-2500.0,0.000103,3]
[335601811,1724364637773,-300.0,0.00010399,2]
[335601812,1724364637782,-790.63,0.000104,2]
[335601813,1724364637791,-259.6462746,0.000104,3]
[335601814,1724364637802,-240.3537254,0.000104,3]
[335601815,1724364637811,-150.0,0.000104,2]
[335601816,1724364637820,-237.9,0.000104,2]
[335601817,1724364637830,-356.9,0.000104,2]
[335601818,1724364637838,-150.0,0.000104,2]
[335601819,1724364637848,-356.9,0.000104,2]
[335601820,1724364637856,-150.0,0.000104,2]
[335601821,1724364637866,-356.9,0.000104,2]
[335601822,1724364637875,-150.0,0.000104,2]
[335601823,1724364637884,-356.9,0.000104,2]
[335601824,1724364637894,-150.0,0.000104,2]
[335601825,1724364637906,-790.76,0.000104,2]
[335601826,1724364637918,-305.65,0.00010466,2]
[335601827,1724364637928,-155.0,0.00010471,2]
[335601828,1724364637937,-500.0,0.000105,3]
[335601829,1724364637946,-500.0,0.000106,3]
[335601830,1724364637955,-150.0,0.00010699,2]
[335601831,1724364637964,-790.76,0.000107,2]
[335601832,1724364637973,-841.93,0.000107,2]
[335601833,1724364637982,-156.0,0.000107,2]
[335601834,1724364637991,-150.0,0.000107,2]
[335601835,1724364638000,-356.83,0.000107,2]
[335601836,1724364638009,-934.88,0.000107,2]
[335601838,1724364638018,-790.76,0.000107,2]
[335601840,1724364638027,-371.31725047,0.000107,2]
[335601842,1724364638038,-691.36274953,0.000107,2]
[335601843,1724364638047,-150.0,0.000107,2]
[335601844,1724364638056,-500.0,0.000107,3]
[335601845,1724364638065,-349.53,0.00010742,2]
[335601846,1724364638074,-150.0,0.00010742,2]
[335601847,1724364638083,-150.0,0.00010742,2]
[335601849,1724364638092,-853.42,0.00010742,2]
[335601850,1724364638102,-790.76,0.00010779,2]
[335601851,1724364638110,-790.76,0.00010779,2]
[335601852,1724364638119,-790.76,0.00010779,2]
[335601853,1724364638128,-235.22909017,0.00010779,2]
[335601856,1724364640251,-555.53090983,0.00010779,2]
[335601857,1724364640260,-421.47,0.00010779,2]
[335601858,1724364640269,-9752.53971679,0.000108,2]
[335601859,1724364640278,-600.0,0.000108,3]
[335601860,1724364640287,-155.0,0.00010862,2]
[335601861,1724364640301,-11741.65284385,0.0001089,2]
[335601862,1724364640312,-870.51265,0.0001089,2]
[335601863,1724364640321,-5122.6458,0.000109,2]
[335601864,1724364640330,-20917.9407,0.000109,2]
[335601865,1724364640340,-6142.16703963,0.000109,2]
[335601866,1724364640351,-5577.69796219,0.000109,2]
[335601867,1724364640367,-31284.44151668,0.000109,2]
[335601868,1724364640379,-13253.22423378,0.000109,2]
[335601869,1724364640391,-681.26488617,0.000109,2]
[335601870,1724364640409,-9511.12059182,0.000109,2]
[335601871,1724364640422,-8000.69006973,0.000109,2]
[335601872,1724364640430,-3912.37242861,0.000109,2]
[335601873,1724364640440,-7500.0,0.000109,2]
[335601874,1724364640449,-641.45761964,0.000109,2]
[335601875,1724364640459,-241.68,0.00010959,2]
[335601876,1724364640470,-250.0,0.00010959,2]
[335601877,1724364640479,-150.79,0.0001099,2]
[335601878,1724364640488,-415.26478706,0.00010993,2]
[335601879,1724364640497,-796.26281227,0.00010998,2]
[335601880,1724364640507,-10343.1066179,0.00010998,2]
[335601881,1724364640516,-697.4707269,0.00010998,2]
[335601882,1724364640525,-5042.3797392,0.00010998,2]
[335601883,1724364640534,-500.0,0.00010998,2]
[335601884,1724364640543,-500.0,0.00010998,2]
[335601885,1724364640557,-500.0,0.00010998,2]
[335601886,1724364640566,-1217.76,0.00010999,2]
[335601887,1724364640575,-1217.76,0.00010999,2]
[335601888,1724364640585,-307.37238592,0.00010999,2]
[335601902,1724364643423,-150.0,0.000104,2]
[335601903,1724364643432,-910.38761408,0.00010999,2]
[335601904,1724364643441,-1217.76,0.00010999,2]
[335601905,1724364643451,-1217.76,0.00010999,2]
[335601907,1724364643460,-1217.76,0.00010999,2]
[335601909,1724364643469,-1217.76,0.00010999,2]
[335601911,1724364643478,-1109.22364551,0.00010999,2]
[335601913,1724364643490,-108.53635449,0.00010999,2]
[335601915,1724364643499,-1217.76,0.00010999,2]
[335601917,1724364643510,-1217.76,0.00010999,2]
[335601919,1724364643519,-321.76295859,0.00010999,2]
[335601922,1724364643530,-613.09825755,0.00010999,2]
[335601924,1724364643542,-282.89878386,0.00010999,2]
[335601926,1724364643553,-10.85554642,0.00010999,2]
[335601929,1724364643570,-643.71140223,0.00010999,2]
[335601931,1724364643581,-563.19305135,0.00010999,2]
[335601932,1724364643590,-1217.76,0.00010999,2]
[335601933,1724364643599,-1217.76,0.00010999,2]
[335601934,1724364643608,-1217.76,0.00010999,2]
[335601935,1724364643617,-1217.76,0.00010999,2]
[335601936,1724364643626,-1217.76,0.00010999,2]
[335601937,1724364643635,-1217.76,0.00010999,2]
[335601938,1724364643644,-1217.76,0.00010999,2]
[335601940,1724364643653,-1217.76,0.00010999,2]
[335601941,1724364643663,-1217.76,0.00010999,2]
[335601942,1724364643672,-1217.76,0.00010999,2]
[335601943,1724364643681,-1217.76,0.00010999,2]
[335601944,1724364643691,-1217.83151,0.00010999,2]
[335601945,1724364643700,-500.0,0.00010999,2]
[335601946,1724364643709,-269.02719696,0.00010999,2]
[335601947,1724364643718,-500.0,0.00010999,2]
[335601948,1724364643727,-500.0,0.00010999,2]
[335601949,1724364643738,-500.0,0.00010999,2]
[335601950,1724364643749,-500.0,0.00010999,2]
[335601951,1724364643758,-500.0,0.00010999,2]
[335601952,1724364643767,-500.0,0.00010999,2]
[335601953,1724364643776,-500.0,0.00010999,2]
[335601954,1724364643786,-500.0,0.00010999,2]
[335601955,1724364643795,-500.0,0.00010999,2]
[335601956,1724364643805,-500.0,0.00010999,2]
[335601957,1724364643814,-419.84,0.00010999,2]
[335601958,1724364643823,-500.0,0.00010999,2]
[335601959,1724364643833,-507.43774146,0.00010999,2]
[335601960,1724364643843,-500.0,0.00010999,2]
[335601961,1724364643852,-500.0,0.00010999,2]
[335601962,1724364643862,-162.0,0.00010999,2]
[335601963,1724364643872,-500.0,0.00010999,2]
[335601964,1724364643882,-500.0,0.00010999,2]
[335601965,1724364643892,-573.33965524,0.00010999,2]
[335601966,1724364643901,-281.42935453,0.00010999,2]
[335601967,1724364643910,-500.0,0.00010999,2]
[335601968,1724364643919,-500.0,0.00010999,2]
[335601969,1724364643929,-500.0,0.00010999,2]
[335601970,1724364643939,-500.0,0.00010999,2]
[335601971,1724364643948,-429.62,0.00010999,2]
[335601972,1724364643959,-500.0,0.00010999,2]
[335601973,1724364643969,-500.0,0.00010999,2]
[335601974,1724364643978,-500.0,0.00010999,2]
[335601975,1724364643987,-500.0,0.00010999,2]
[335601976,1724364643996,-531.2,0.00010999,2]
[335601977,1724364644005,-500.0,0.00010999,2]
[335601978,1724364644014,-500.0,0.00010999,2]
[335601979,1724364644023,-500.0,0.00010999,2]
[335601980,1724364644032,-500.0,0.00010999,2]
[335601981,1724364644042,-500.0,0.00010999,2]
[335601982,1724364644052,-609.64,0.00010999,2]
[335601983,1724364644061,-500.0,0.00010999,2]
[335601984,1724364644070,-500.0,0.00010999,2]
[335601985,1724364644079,-500.0,0.00010999,2]
[335601986,1724364644088,-500.0,0.00010999,2]
[335601987,1724364644098,-638.44,0.00010999,2]
[335601988,1724364644107,-15994.97169172,0.00011,2]
[335601989,1724364644116,-47712.23175196,0.00011,2]
[335601992,1724364718179,1086.0,0.0001,2]
[335601993,1724364721350,199.99999901,0.00027,120]
[335601996,1724364765058,500.0,0.00024657,120]
[335601997,1724364765321,500.0,0.00025342,120]
[335601998,1724364765599,500.0,0.00026027,120]
[335601999,1724364765864,500.0,0.00026712,120]
[335602000,1724364821713,150.0,0.000121,30]
[335602001,1724364853521,827.24,0.0001,2]
[335602002,1724364862766,220.04335324,0.00027,120]
[335602003,1724365072286,339.1,8.219e-05,2]
[335602004,1724365119661,1408.92,9.995e-05,2]
[335602005,1724365158064,919.78,9.968e-05,2]
[335602009,1724365371237,614.9,0.00024657,120]
[335602010,1724365371484,614.9,0.00025342,120]
[335602011,1724365371745,614.9,0.00026027,120]
[335602012,1724365371995,614.9,0.00026712,120]
[335602013,1724365439766,250.0,9.924e-05,2]
[335602014,1724365454406,163.9,9.938e-05,2]
[335602015,1724365472203,200.0,9.909e-05,2]
[335602016,1724365493479,700.0,8.22e-05,2]
[335602017,1724365493582,700.0,8.22e-05,2]
[335602018,1724365493921,500.0,8.22e-05,2]
[335602019,1724365495055,700.0,9.59e-05,2]
[335602020,1724365495174,700.0,9.59e-05,2]
[335602021,1724365512439,150.0,9.888e-05,2]
[335602022,1724365523865,500.0,8.22e-05,2]
[335602023,1724365525208,700.0,8.22e-05,2]
[335602024,1724365525437,500.0,9.59e-05,2]
[335602025,1724365526619,700.0,9.59e-05,2]
[335602026,1724365585127,238.96,9.961e-05,2]
[335602027,1724365606048,526.79741821,0.00027,120]
[335602028,1724365632346,217286.50662967,0.0001,2]
[335602029,1724365648629,723.7000812,0.00010009,2]
[335602030,1724365654487,3939.36827943,0.00010009,2]
[335602031,1724365663307,369.92,9.953e-05,2]
[335602033,1724365700496,322.14,8.219e-05,2]
[335602037,1724365712131,893.27357362,0.00010009,2]
[335602048,1724365739366,155.39113803,0.00010009,2]
[335602052,1724365756694,1500.0,0.00010009,2]
[335602053,1724365772906,203.13142716,0.00010009,2]
[335602058,1724365809954,217.17304257,0.00010009,2]
[335602065,1724365831843,-316.61202881,0.00010026,2]
[335602066,1724365831852,-24.17532908,0.00010026,2]
[335602067,1724365831863,-130.82467092,0.00010026,2]
[335602068,1724365831873,-200.39904225,0.00010026,2]
[335602069,1724365831882,-372.15417001,0.00010034,2]
[335602070,1724365831894,-5305.17582999,0.00010034,2]
[335602071,1724365831903,-630.08,0.00010051,2]
[335602072,1724365831912,-174.11,0.00010169,2]
[335602073,1724365831922,-322.14,0.00010473,2]
[335602074,1724365831931,-151.03,0.000107,2]
[335602075,1724365831940,-426.83,0.000107,2]
[335602076,1724365831949,-426.83,0.000107,2]
[335602077,1724365831959,-356.9,0.000107,2]
[335602078,1724365831969,-1000.0,0.000108,2]
[335602079,1724365831978,-28927.5474,0.000108,2]
[335602080,1724365831988,-150.0,0.000108,2]
[335602081,1724365831997,-356.9,0.000108,2]
[335602082,1724365832006,-834.55,0.000108,2]
[335602083,1724365832015,-48773.59822522,0.000108,2]
[335602084,1724365832026,-3019.857,0.000108,2]
[335602085,1724365832035,-10000.649891,0.0001089,2]
[335602086,1724365832044,-150.0,0.0001089,2]
[335602087,1724365832054,-157.95458,0.0001089,2]
[335602088,1724365832063,-870.51266,0.0001089,2]
[335602089,1724365832073,-347.853,0.00010899,2]
[335602090,1724365832082,-4958.6828,0.00010899,2]
[335602091,1724365832091,-1125.1539,0.00010899,2]
[335602092,1724365832100,-4838.75399773,0.00010899,2]
[335602093,1724365832110,-4838.7539977,0.00010899,2]
[335602094,1724365832119,-4838.7539977,0.00010899,2]
[335602095,1724365832128,-4838.7539977,0.00010899,2]
[335602096,1724365832138,-4838.7539977,0.00010899,2]
[335602097,1724365832147,-4838.7539977,0.000109,2]
[335602098,1724365832156,-4838.7539977,0.000109,2]
[335602099,1724365832166,-938.4516,0.000109,2]
[335602100,1724365832175,-8703.7603,0.000109,2]
[335602101,1724365832185,-4838.7539977,0.000109,2]
[335602102,1724365832195,-4838.7539977,0.000109,2]
[335602103,1724365832204,-164.95731865,0.000109,2]
[335602104,1724365832213,-2852.9344,0.000109,2]
[335602105,1724365832223,-150.0,0.000109,2]
[335602106,1724365832232,-870.51265,0.000109,2]
[335602107,1724365832242,-4838.7539977,0.000109,2]
[335602108,1724365832251,-7500.0,0.000109,2]
[335602109,1724365832261,-300.0,0.000109,2]
[335602110,1724365832270,-586.14,0.000109,2]
[335602111,1724365832280,-870.51266,0.0001094,2]
[335602112,1724365832291,-217.24,0.00010959,2]
[335602113,1724365832301,-250.0,0.00010959,2]
[335602114,1724365832310,-160.69,0.00010959,2]
[335602115,1724365832320,-500.0,0.0001096,2]
[335602116,1724365832329,-700.0,0.0001096,2]
[335602117,1724365832339,-700.0,0.0001096,2]
[335602118,1724365832348,-700.0,0.0001096,2]
[335602119,1724365832357,-870.51266,0.0001098,2]
[335602120,1724365832367,-8500.0,0.00010981,2]
[335602121,1724365832377,-150.75,0.0001099,2]
[335602122,1724365832386,-150.75,0.0001099,2]
[335602123,1724365832396,-150.75,0.0001099,2]
[335602124,1724365832405,-150.75,0.0001099,2]
[335602125,1724365832415,-150.75,0.0001099,2]
[335602126,1724365832424,-150.75,0.0001099,2]
[335602127,1724365832433,-150.75,0.0001099,2]
[335602128,1724365832443,-150.75,0.0001099,2]
[335602129,1724365832452,-150.75,0.0001099,2]
[335602130,1724365832461,-150.75,0.0001099,2]
[335602131,1724365832474,-150.75,0.0001099,2]
[335602132,1724365832483,-150.75,0.0001099,2]
[335602133,1724365832492,-150.75,0.0001099,2]
[335602134,1724365832502,-150.75,0.0001099,2]
[335602135,1724365832512,-8500.0,0.0001099,2]
[335602136,1724365832521,-462.4945553,0.00010994,2]
[335602137,1724365832530,-9877.5490808,0.00010994,2]
[335602138,1724365832539,-158.6762006,0.00010994,2]
[335602139,1724365832554,-540.8412993,0.00010994,2]
[335602140,1724365832566,-436.06621227,0.00010994,2]
[335602141,1724365832577,-1151.29856153,0.00010994,2]
[335602142,1724365832586,-2967.17184642,0.00010997,2]
[335602143,1724365832597,-1974.8225,0.00010997,2]
[335602144,1724365832608,-876.11960137,0.00010997,2]
[335602145,1724365832620,-2698.83482184,0.00010997,2]
[335602146,1724365832630,-500.0,0.00010998,2]
[335602147,1724365832640,-500.0,0.00010998,2]
[335602148,1724365832649,-500.0,0.00010998,2]
[335602149,1724365832658,-500.0,0.00010998,2]
[335602150,1724365832668,-500.0,0.00010998,2]
[335602151,1724365832677,-500.0,0.00010999,2]
[335602152,1724365832688,-500.0,0.00010999,2]
[335602153,1724365832697,-500.0,0.00010999,2]
[335602154,1724365832706,-88.41326394,0.00010999,2]
[335602155,1724365832718,-318.65673606,0.00010999,2]
[335602156,1724365832727,-7553.30436657,0.00010999,2]
[335602157,1724365832739,-946.69563343,0.00010999,2]
[335602158,1724365832748,-500.0,0.00010999,2]
[335602159,1724365832757,-500.0,0.00010999,2]
[335602160,1724365832766,-500.0,0.00010999,2]
[335602161,1724365832776,-166.41309379,0.00010999,2]
[335602162,1724365832795,-333.58690621,0.00010999,2]
[335602163,1724365832804,-265.38493812,0.00010999,2]
[335602164,1724365832815,-99.42506188,0.00010999,2]
[335602165,1724365832824,-500.0,0.00010999,2]
[335602166,1724365832833,-500.0,0.00010999,2]
[335602167,1724365832843,-500.0,0.00010999,2]
[335602168,1724365832852,-500.0,0.00010999,2]
[335602169,1724365832861,-360.77,0.00010999,2]
[335602170,1724365832871,-500.0,0.00010999,2]
[335602171,1724365832880,-500.0,0.00010999,2]
[335602172,1724365832890,-500.0,0.00010999,2]
[335602173,1724365832899,-370.80887976,0.00010999,2]
[335602174,1724365832911,-129.19112024,0.00010999,2]
[335602175,1724365832920,-413.4876603,0.00010999,2]
[335602176,1724365832932,-144.4455499,0.00010999,2]
[335602177,1724365832941,-500.0,0.00010999,2]
[335602178,1724365832951,-148.1445675,0.00010999,2]
[335602179,1724365832979,-419.23699242,0.00010026,2]
[335602180,1724365832990,-109.18053427,0.00010999,2]
[335602181,1724365833001,-242.67489823,0.00010999,2]
[335602182,1724365833011,-500.0,0.00010999,2]
[335602183,1724365833022,-500.0,0.00010999,2]
[335602184,1724365833033,-327.84579438,0.00010999,2]
[335602186,1724365837859,-1049.2313187,0.00010994,2]
[335602187,1724365837869,-172.15420562,0.00010999,2]
[335602188,1724365837879,-634.69572772,0.00010999,2]
[335602189,1724365837889,-500.0,0.00010999,2]
[335602190,1724365837898,-500.0,0.00010999,2]
[335602191,1724365837907,-500.0,0.00010999,2]
[335602192,1724365837916,-500.0,0.00010999,2]
[335602193,1724365837926,-500.0,0.00010999,2]
[335602194,1724365837935,-163.90595851,0.00010999,2]
[335602195,1724365837944,-500.0,0.00010999,2]
[335602196,1724365837953,-500.0,0.00010999,2]
[335602197,1724365837963,-500.0,0.00010999,2]
[335602198,1724365837972,-425.01300036,0.00010999,2]
[335602199,1724365837984,-74.98699964,0.00010999,2]
[335602200,1724365837993,-500.0,0.00010999,2]
[335602201,1724365838005,-500.0,0.00010999,2]
[335602202,1724365838014,-500.0,0.00010999,2]
[335602203,1724365838023,-500.0,0.00010999,2]
[335602204,1724365838033,-500.0,0.00010999,2]
[335602205,1724365838043,-500.0,0.00010999,2]
[335602206,1724365838052,-500.0,0.00010999,2]